bitfinex-derivatives/quotes_SOLF0:USTF0_20250228
["timestamp","ask_amount","ask_price","bid_price","bid_amount"]
[1740714665424,16.5467,128.11,128.01,2.095]
[1740714665626,0.05938165,128.05,128.02,0.05370007]
[1740714665821,16.5467,128.11,128.01,2.095]
[1740714666017,0.05349144,128.04,128.02,0.05084579]
[1740714666216,16.5467,128.11,128.0,1.8991]
[1740714666424,0.05431007,128.04,127.92,9.9196]
[1740714666725,7.8233,127.95,127.92,2.095]
[1740714667224,7.8193,128.02,127.92,2.095]
[1740714667424,14.56,128.04,127.92,2.095]
[1740714667623,14.56,128.04,127.96,7.8221]
[1740714667823,0.04984872,127.98,127.96,0.05307413]
[1740714668024,14.56,128.04,127.92,2.095]
[1740714668225,0.05321504,127.98,127.96,0.05533924]
[1740714668527,14.56,128.09,127.92,2.095]
[1740714668729,0.05540577,127.98,127.96,0.05128353]
[1740714668921,190.0,128.07,127.92,2.095]
[1740714669126,0.04948917,127.98,127.96,0.05964877]
[1740714669327,0.05255911,127.98,127.94,14.56]
[1740714669526,16.12140213,128.09,127.96,0.05416972]
[1740714669825,14.56,128.09,127.94,14.56]
[1740714670726,0.05771749,128.03,128.0,0.05100074]
[1740714670926,14.56,128.09,127.94,14.56]
[1740714671126,7.87001325,128.03,128.0,0.05949654]
[1740714671327,14.56,128.09,127.97,7.8215]
[1740714671529,7.8193,128.02,127.97,7.8215]
[1740714671831,0.05138232,128.03,128.0,0.05168474]
[1740714672031,7.819,128.02,128.0,0.05168474]
[1740714672234,1.9209,128.08,127.94,14.56]
[1740714672427,0.04947497,128.02,128.0,0.05826158]
[1740714672625,0.04947497,128.02,127.94,14.56]
[1740714672932,0.05887457,128.02,128.0,0.05990049]
[1740714673129,0.05887457,128.02,127.94,14.56]
[1740714673130,7.8176,128.05,127.94,14.56]
[1740714673331,0.05803498,128.02,128.0,0.05466651]
[1740714674528,190.0,128.08,128.0,0.05466651]
[1740714674731,1.9162,128.12,128.0,0.05466651]
[1740714674929,1.9162,128.12,127.99,1.9051]
[1740714675328,7.8193,128.02,127.99,1.9051]
[1740714675536,14.56,128.09,127.95,3.9578]
[1740714675837,190.1658,128.08,127.99,0.04967395]
[1740714676129,0.1658,128.08,127.95,2.0527]
[1740714676332,190.1113,128.07,128.02,0.05632479]
[1740714676535,7.8204,128.0,127.95,9.8758]
[1740714676734,191.9162,128.06,127.95,2.0527]
[1740714677427,1.9162,128.06,127.95,2.0527]
[1740714677737,0.04961714,128.02,127.99,0.04965395]
[1740714678131,1.9858,128.1,127.97,2.0194]
[1740714678331,0.05787281,128.02,127.99,7.87533476]
[1740714678527,1.9858,128.1,127.99,7.8205]
[1740714678735,0.05769819,128.02,127.99,0.05338711]
[1740714679035,0.05951456,128.02,127.99,0.05378925]
[1740714679634,0.05951456,128.02,127.95,2.0527]
[1740714679830,0.05951456,128.02,127.92,2.0194]
[1740714680025,7.8225,127.97,127.92,2.0194]
[1740714680234,190.0,128.03,127.91,11.8242]
[1740714680435,190.0,128.02,127.91,11.8242]
[1740714680832,7.823,127.96,127.95,0.05357067]
[1740714681340,0.05503267,127.98,127.89,32.33566521]
[1740714681837,190.1095,128.0,127.89,32.33566521]
[1740714682039,7.8254,127.92,127.89,32.33566521]
[1740714682338,7.87742206,127.92,127.89,32.3905524]
[1740714682639,7.87742206,127.92,127.89,0.05488719]
[1740714683830,7.8261,127.91,127.89,0.05488719]
[1740714684033,0.05202206,127.92,127.89,0.05488719]
[1740714684234,7.8261,127.91,127.89,0.05488719]
[1740714685040,0.1113,128.03,127.89,0.05488719]
[1740714685241,0.1113,128.03,127.84,1.42044817]
[1740714685434,7.8217,127.98,127.84,1.42044817]
[1740714685634,0.1113,128.03,127.84,1.42044817]
[1740714685830,0.1113,128.03,127.85,8.1619889]
[1740714686041,0.1113,128.03,127.94,7.8238]
[1740714686536,0.05619178,128.0,127.97,0.05150397]
[1740714686930,7.8207,127.99,127.97,0.05150397]
[1740714687344,0.05619178,128.0,127.97,0.05150397]
[1740714688038,7.8212,127.99,127.97,0.05150397]
[1740714688941,7.8213,127.98,127.97,0.05150397]
[1740714689237,0.05619178,128.0,127.97,0.05150397]
[1740714689639,7.8212,127.99,127.97,0.05150397]
[1740714691043,0.05619178,128.0,127.97,0.05150397]
[1740714691345,15.6227,128.15,128.0,7.8196]
[1740714691346,14.7254,128.1,128.0,7.8196]
[1740714691534,7.8174,128.05,128.0,7.8196]
[1740714692139,7.8166,128.06,128.01,7.819]
[1740714692438,0.05280758,128.04,128.01,7.87704085]
[1740714692836,191.9037,128.1,127.99,2.0682]
[1740714693044,0.04989535,128.06,128.03,0.05517885]
[1740714693447,2.1264,128.14,128.03,0.05517885]
[1740714693644,2.1264,128.14,127.99,2.0682]
[1740714693946,2.1264,128.14,128.02,7.8187]
[1740714694444,2.1264,128.14,127.99,2.0682]
[1740714694644,2.1264,128.14,128.07,0.05857434]
[1740714694940,1.38930584,128.13,127.99,2.0682]
[1740714695147,190.0,128.12,127.99,2.0682]
[1740714696041,0.05691316,128.07,128.04,0.05598995]
[1740714696246,7.817,128.06,128.04,0.05598995]
[1740714696445,7.817,128.06,128.04,0.05516931]
[1740714696641,0.05691316,128.07,128.04,0.05516931]
[1740714696842,7.8171,128.05,128.04,0.05516931]
[1740714697742,0.05691316,128.07,127.92,339.96855301]
[1740714697942,0.05691316,128.07,127.95,7.823]
[1740714697943,190.0,128.06,127.95,7.823]
[1740714698141,190.0,128.06,127.94,1.9097]
[1740714698344,7.8208,127.99,127.94,1.9097]
[1740714698541,7.8208,127.99,127.95,7.8228]
[1740714698742,190.0,128.05,127.93,2.0479]
[1740714698945,0.05582509,127.98,127.96,0.05354274]
[1740714699343,0.05582509,127.98,127.93,2.0479]
[1740714699344,190.0,128.04,127.93,2.0479]
[1740714699546,0.05344521,127.98,127.96,0.05393917]
[1740714699745,190.0,128.03,127.93,2.0479]
[1740714699945,0.05136265,127.98,127.96,0.053297]
[1740714700149,204.54,128.02,127.93,2.0479]
[1740714700349,0.05989058,127.98,127.96,0.0496943]
[1740714702750,7.88169058,127.98,127.96,0.0496943]
[1740714702944,0.05989058,127.98,127.96,0.0496943]
[1740714704953,7.88129058,127.98,127.96,0.0496943]
[1740714705155,0.05989058,127.98,127.96,0.0496943]
[1740714706552,2.001,128.04,127.96,0.0496943]
[1740714706747,14.54,128.09,127.93,2.0479]
[1740714706954,7.8181,128.04,127.99,7.8203]
[1740714707149,1.9845,128.08,127.99,7.8203]
[1740714707454,7.818,128.04,127.99,7.8203]
[1740714707651,7.818,128.04,128.0,7.8201]
[1740714707859,0.05718753,128.03,128.0,0.04967051]
[1740714708051,2.0703,128.12,128.01,1.9377]
[1740714708457,7.8161,128.07,128.01,1.9377]
[1740714708653,2.0703,128.12,127.95,2.063]
[1740714708854,2.0703,128.12,127.96,1.9377]
[1740714709358,2.0703,128.12,128.03,0.05321315]
[1740714709550,7.8162,128.07,127.96,1.9377]
[1740714709749,7.8162,128.07,128.03,0.05106977]
[1740714709948,7.8162,128.07,127.96,1.9377]
[1740714710157,2.0703,128.12,128.04,0.05633253]
[1740714710158,7.8154,128.08,128.04,0.05633253]
[1740714710362,2.0703,128.12,127.96,1.9377]
[1740714710557,2.0703,128.12,128.05,0.05983555]
[1740714711955,190.0,128.17,128.05,0.05983555]
[1740714712156,2.0255,128.18,128.01,2.0417]
[1740714712359,2.0255,128.18,128.1,0.05190288]
[1740714712662,7.8126,128.13,128.08,7.8151]
[1740714713156,7.8117,128.14,128.09,0.05225905]
[1740714713562,7.8117,128.14,128.02,1.9585]
[1740714713762,7.8117,128.14,128.1,0.05116575]
[1740714713962,7.8117,128.14,128.02,1.9585]
[1740714714157,7.8117,128.14,128.11,0.05757794]
[1740714714362,7.8117,128.14,128.09,7.8141]
[1740714714562,2.0255,128.18,128.11,0.0577497]
[1740714714763,2.0255,128.18,128.07,7.8154]
[1740714715060,7.8116,128.14,128.13,0.05509929]
[1740714715262,2.0255,128.18,128.05,7.8166]
[1740714716464,0.05191194,128.13,128.1,0.0586115]
[1740714716762,0.05191194,128.13,128.1,0.05412689]
[1740714716966,7.8134,128.11,128.1,0.05412689]
[1740714720661,37.94,128.11,127.94,32.33566521]
[1740714720863,3.73153816,128.1,127.94,32.33566521]
[1740714721165,26.39334029,128.09,127.94,32.33566521]
[1740714721366,7.8232,127.95,127.94,32.33566521]
[1740714722465,7.88156532,127.96,127.94,32.33566521]
[1740714722864,0.05896532,127.96,127.94,32.33566521]
[1740714723064,0.05896532,127.96,127.93,0.05763098]
[1740714723269,0.05896532,127.96,127.93,2.01333098]
[1740714723869,204.52,128.04,127.93,2.01333098]
[1740714724071,190.0,128.04,127.93,1.9557]
[1740714724272,197.8178,128.04,127.93,1.9557]
[1740714724466,1.9766,128.09,127.93,1.9557]
[1740714724871,0.05594152,128.02,128.0,0.05207882]
[1740714725072,7.8165,128.06,128.0,0.05207882]
[1740714725466,7.8147,128.09,128.0,0.05207882]
[1740714725668,81.03294339,128.12,128.0,0.05207882]
[1740714725871,14.52,128.14,127.97,1.9386]
[1740714726070,7.8129,128.12,127.98,1.41911666]
[1740714726269,7.8129,128.12,128.04,0.05707053]
[1740714726571,32.67002586,128.16,128.01,212.5]
[1740714726872,32.67002586,128.16,128.07,0.05377732]
[1740714727065,32.67002586,128.16,128.02,2.037]
[1740714727262,32.67002586,128.16,128.1,0.05327669]
[1740714727667,56.11002586,128.16,128.01,212.5]
[1740714727869,1.39494015,128.15,128.01,212.5]
[1740714728070,32.67002586,128.16,128.01,212.5]
[1740714728268,1.39540793,128.15,128.01,212.5]
[1740714728664,15.91540793,128.15,128.01,212.5]
[1740714728868,0.05894415,128.09,128.07,0.05025487]
[1740714729067,7.8152,128.08,128.07,0.05025487]
[1740714729276,7.8152,128.08,128.01,212.5]
[1740714729472,7.8152,128.08,128.06,0.05961038]
[1740714729672,7.8152,128.08,128.01,212.5]
[1740714729874,0.05653703,128.08,128.06,0.05891307]
[1740714730066,0.05653703,128.08,128.01,212.5]
[1740714730265,204.52,128.15,128.06,0.05290407]
[1740714730472,7.8138,128.11,128.02,2.0487]
[1740714731072,14.52,128.15,128.02,2.0487]
[1740714731675,14.52,128.15,128.07,0.05928541]
[1740714732076,14.52,128.15,128.02,2.0487]
[1740714732380,2.0251,128.16,128.02,2.0487]
[1740714732568,2.0251,128.16,128.07,0.05601272]
[1740714732770,2.0251,128.16,128.02,2.0487]
[1740714733170,7.8183,128.03,128.02,2.0487]
[1740714733369,14.52,128.11,127.98,2.037]
[1740714733573,1.9637,128.1,127.98,2.037]
[1740714734172,7.8182,128.04,127.98,2.037]
[1740714734472,191.9637,128.1,127.98,2.037]
[1740714734676,0.05502728,128.02,128.0,0.05526726]
[1740714734876,1.9637,128.1,128.0,0.05526726]
[1740714735274,1.9637,128.1,127.98,2.037]
[1740714735578,1.9637,128.1,127.99,1.914]
[1740714735968,1.9637,128.1,128.03,0.05620731]
[1740714736767,14.52,128.11,128.03,0.05620731]
[1740714736971,2.0461,128.13,127.99,1.914]
[1740714737278,1.56054931,128.16,128.06,0.04980757]
[1740714737478,1.56054931,128.16,128.02,14.52]
[1740714737680,7.8134,128.12,128.1,0.05695396]
[1740714737881,2.0461,128.18,128.02,14.52]
[1740714738082,2.0461,128.18,128.06,0.05861392]
[1740714738275,7.8132,128.12,128.02,14.52]
[1740714738474,7.8132,128.12,128.11,0.0570363]
[1740714738679,7.8132,128.12,128.02,14.52]
[1740714738880,7.8132,128.12,128.1,0.05649076]
[1740714739181,7.8124,128.13,128.1,0.05835263]
[1740714739476,7.8124,128.13,128.02,14.52]
[1740714739477,2.0461,128.18,128.04,212.46]
[1740714739683,2.0461,128.18,128.1,0.05942951]
[1740714740079,2.0461,128.18,128.06,2.043]
[1740714740080,2.0461,128.18,128.06,4.0912]
[1740714740278,7.8113,128.15,128.13,0.06011355]
[1740714740480,2.0461,128.18,128.13,0.06011355]
[1740714741783,7.8113,128.15,128.13,0.06011355]
[1740714742084,2.0461,128.18,128.13,0.06011355]
[1740714742282,7.8113,128.15,128.13,0.06011355]
[1740714742885,14.52,128.22,128.13,0.06011355]
[1740714743180,118.45774163,128.21,128.06,4.0912]
[1740714743385,7.8097,128.17,128.16,0.05556845]
[1740714743680,190.0,128.23,128.15,0.04944343]
[1740714743984,7.8083,128.2,128.09,14.5]
[1740714744175,7.8083,128.2,128.18,0.0497203]
[1740714744377,1.9229,128.25,128.09,14.5]
[1740714744575,1.9229,128.25,128.18,0.05409715]
[1740714745379,0.1103,128.28,128.18,0.05409715]
[1740714745578,7.8065,128.23,128.09,209.5]
[1740714745776,0.1103,128.28,128.09,14.5]
[1740714745980,0.1103,128.28,128.22,0.05927225]
[1740714746182,0.1103,128.28,128.09,209.5]
[1740714746482,0.1103,128.28,128.09,14.5]
[1740714746684,0.1103,128.28,128.06,4.0912]
[1740714746986,0.1103,128.28,128.1,14.5]
[1740714747185,2.3969,128.29,128.11,1.9505]
[1740714747588,0.05286913,128.21,128.19,0.05829731]
[1740714747782,32.71642586,128.33,128.19,0.05829731]
[1740714747986,32.71642586,128.33,128.18,1.9505]
[1740714748685,7.8044,128.26,128.18,1.9505]
[1740714748886,7.8044,128.26,128.24,0.05095241]
[1740714749187,7.8026,128.29,128.18,1.9505]
[1740714749487,2.0715,128.33,128.24,0.05132946]
[1740714749886,2.0715,128.33,128.18,1.9505]
[1740714750587,2.0715,128.33,128.24,0.05292063]
[1740714750788,7.8073,128.22,128.18,1.9505]
[1740714750991,14.5,128.29,128.13,3.9948]
[1740714751188,2.01693042,128.28,128.13,5.9187]
[1740714751388,7.8089,128.19,128.13,5.9187]
[1740714751989,0.6195,128.28,128.13,5.9187]
[1740714751990,0.05690419,128.17,128.15,0.04935707]
[1740714752380,1.39583223,128.27,128.13,5.9187]
[1740714752581,0.05563458,128.17,128.15,0.05634723]
[1740714752789,190.0,128.26,128.13,5.9187]
[1740714752986,0.6195,128.28,128.13,5.9187]
[1740714753189,0.05572011,128.17,128.15,0.05115638]
[1740714753384,0.6195,128.28,128.13,5.9187]
[1740714753581,0.05099449,128.17,128.15,0.05852085]
[1740714753784,0.05099449,128.17,128.13,5.9187]
[1740714753979,0.6195,128.28,128.15,0.05459542]
[1740714754187,0.0536199,128.16,128.15,0.05459542]
[1740714754489,190.0,128.27,128.2,0.05757658]
[1740714754693,190.0,128.26,128.13,5.9187]
[1740714754891,190.05299616,128.25,128.13,3.9948]
[1740714755189,7.8114,128.15,128.13,3.9948]
[1740714755889,7.86248611,128.15,128.13,4.04818192]
[1740714756091,7.8116,128.14,128.13,4.04818192]
[1740714756290,7.8116,128.14,128.13,0.05338192]
[1740714756485,0.05108611,128.15,128.08,4.0496]
[1740714756689,7.8146,128.09,128.08,4.0496]
[1740714757087,190.0,128.19,128.08,4.0496]
[1740714757390,190.0,128.18,128.08,4.0496]
[1740714757590,7.8145,128.1,128.08,4.0496]
[1740714757990,7.8145,128.1,128.08,4.10753543]
[1740714758186,7.86445622,128.1,128.08,4.10753543]
[1740714758387,7.8146,128.09,128.08,0.05793543]
[1740714760591,7.8178,128.04,128.01,3.87]
[1740714760793,0.04995622,128.1,128.01,3.87]
[1740714760990,190.1105,128.13,128.01,3.87]
[1740714761292,190.0,128.12,128.01,3.87]
[1740714761592,190.5095,128.12,128.01,3.87]
[1740714761791,0.05349543,128.08,128.05,0.05681793]
[1740714761993,0.05349543,128.08,127.96,2.0586]
[1740714762187,0.05349543,128.08,127.97,3.9512]
[1740714762391,204.48,128.07,127.97,3.9512]
[1740714762689,0.1145,128.06,127.92,131.29975301]
[1740714763082,7.8222,127.97,127.92,3.9512]
[1740714763286,0.05368466,128.01,127.99,0.05977682]
[1740714763484,190.0,128.05,127.99,0.05977682]
[1740714763686,0.05237433,128.01,127.99,0.05977682]
[1740714763892,0.05237433,128.01,127.92,3.9512]
[1740714764386,190.5095,128.04,127.92,3.9512]
[1740714764590,190.0,128.04,127.92,3.9512]
[1740714765291,0.05061597,127.99,127.97,0.0545897]
[1740714765691,190.0,128.04,127.97,0.0545897]
[1740714765993,7.8213,127.98,127.97,0.0545897]
[1740714766491,0.05956458,127.99,127.97,0.0545897]
[1740714766898,0.1145,128.06,127.97,0.0545897]
[1740714767091,0.05404291,127.99,127.97,0.0545897]
[1740714767287,0.05404291,127.99,127.92,3.9512]
[1740714767493,7.8228,127.96,127.92,3.9512]
[1740714767799,0.05013925,127.97,127.92,3.9512]
[1740714768101,0.05013925,127.97,127.94,0.05315541]
[1740714768291,0.1145,128.06,127.94,0.05315541]
[1740714768493,0.05444129,127.97,127.94,0.05315541]
[1740714768687,190.0,128.05,127.92,3.9512]
[1740714768897,0.1145,128.06,127.94,0.05487083]
[1740714769093,7.8232,127.95,127.94,0.05487083]
[1740714769298,14.5,128.0,127.88,4.0713]
[1740714769492,0.0515217,127.96,127.93,0.0567262]
[1740714769689,7.8238,127.94,127.93,0.0567262]
[1740714770097,7.8254,127.92,127.88,4.0713]
[1740714770297,2.5305,127.99,127.88,4.0713]
[1740714770700,7.8251,127.92,127.88,4.0713]
[1740714770999,2.5305,127.99,127.88,4.0713]
[1740714771200,0.05967323,127.91,127.89,0.05987076]
[1740714771701,2.5305,127.99,127.89,0.05593578]
[1740714771894,0.05630264,127.91,127.89,0.05593578]
[1740714772096,2.5305,127.99,127.88,4.0713]
[1740714772302,0.05795743,127.91,127.89,0.05967963]
[1740714772508,7.88405743,127.91,127.88,4.0713]
[1740714772707,7.8261,127.91,127.88,4.0713]
[1740714772999,7.87996895,127.91,127.89,0.05119014]
[1740714773202,0.05386895,127.91,127.89,0.05119014]
[1740714774110,7.8262,127.9,127.89,0.05119014]
[1740714774310,0.05386895,127.91,127.83,1.9176]
[1740714774703,2.5305,127.99,127.83,1.9176]
[1740714775708,0.05423189,127.92,127.83,1.9176]
[1740714775909,0.05423189,127.92,127.9,0.05578367]
[1740714776210,190.0,127.98,127.83,1.9176]
[1740714776411,0.05658258,127.92,127.83,1.9176]
[1740714776611,7.8256,127.91,127.9,0.05368212]
[1740714776805,190.0,127.97,127.83,1.9176]
[1740714776999,190.0,127.97,127.82,1.9368]
[1740714777000,190.0,127.96,127.82,1.9368]
[1740714777202,7.8262,127.9,127.89,0.04938671]
[1740714779208,0.05310643,127.92,127.89,0.04938671]
[1740714780305,7.8262,127.9,127.89,0.04938671]
[1740714780807,7.87820643,127.92,127.89,0.04938671]
[1740714781013,0.05310643,127.92,127.89,0.04938671]
[1740714782309,190.0,128.01,127.89,23.50938671]
[1740714782510,1.9484,128.04,127.9,3.8755]
[1740714782713,1.9484,128.04,127.9,216.5555]
[1740714783009,14.5,128.1,127.9,216.5555]
[1740714783204,1.9484,128.09,127.9,216.5555]
[1740714783711,0.05515544,128.01,127.98,0.05903019]
[1740714784109,1.9484,128.09,127.91,1.41982163]
[1740714784309,213.3141,128.17,127.98,0.05621615]
[1740714784510,17.90701133,128.16,127.98,0.05621615]
[1740714784714,16.5209,128.16,127.95,14.5]
[1740714785108,7.8157,128.08,127.95,14.5]
[1740714785309,14.5,128.15,127.95,14.5]
[1740714785503,0.05898477,128.03,128.0,0.05808003]
[1740714785708,7.8146,128.09,128.0,0.05808003]
[1740714785907,7.8146,128.09,127.96,1.41930442]
[1740714786314,7.8146,128.09,127.97,2.0547]
[1740714786617,14.5,128.15,127.98,1.9697]
[1740714787013,0.05511071,128.04,128.02,0.05077987]
[1740714787213,14.5,128.15,127.98,1.9697]
[1740714787717,7.8146,128.1,127.98,1.9697]
[1740714788315,0.0495003,128.05,128.03,0.0533002]
[1740714788618,14.5,128.15,127.98,220.4097]
[1740714788816,7.8133,128.12,128.02,14.48]
[1740714789019,14.5,128.15,128.02,14.48]
[1740714789208,7.815,128.09,128.02,14.48]
[1740714789414,14.5,128.15,128.02,14.48]
[1740714789620,0.05041566,128.07,128.04,0.05972128]
[1740714790020,7.8151,128.09,128.02,14.48]
[1740714790322,0.05108993,128.07,128.04,0.05902487]
[1740714790518,2.0209,128.16,128.04,23.47902487]
[1740714790719,0.1136,128.21,128.02,14.48]
[1740714791021,7.8114,128.15,128.03,2.098]
[1740714791217,2.6844,128.21,128.03,197.098]
[1740714791422,1.9502,128.21,128.03,197.098]
[1740714791722,0.05860082,128.13,128.11,0.05591684]
[1740714792221,14.48,128.19,128.03,2.098]
[1740714792421,0.05853366,128.13,128.11,0.05397536]
[1740714792616,7.8159,128.07,128.03,2.098]
[1740714792818,190.0,128.17,128.03,2.098]
[1740714793122,7.8171,128.05,128.03,2.098]
[1740714793421,14.48,128.12,127.98,1.9697]
[1740714793722,7.8181,128.04,127.98,1.9697]
[1740714793919,0.05736997,128.06,127.98,1.9697]
[1740714794217,190.7323,128.11,128.0,0.05767879]
[1740714794416,0.05569404,128.03,128.0,0.05767879]
[1740714794631,190.7323,128.11,127.98,1.9697]
[1740714794822,190.7323,128.11,128.0,0.0539921]
[1740714795021,0.05097508,128.03,128.0,0.0539921]
[1740714795220,7.8176,128.05,127.98,1.9697]
[1740714795525,0.0542008,128.03,128.0,0.05957418]
[1740714796021,213.44,128.1,128.0,0.04988047]
[1740714796219,0.05117011,128.03,128.0,0.04988047]
[1740714796420,190.0,128.09,127.94,4.0929]
[1740714796629,0.05650807,128.03,128.0,0.05389064]
[1740714797022,7.82,128.01,127.94,4.0929]
[1740714797321,0.05872315,128.03,128.0,0.05998619]
[1740714797522,7.8198,128.01,127.94,4.0929]
[1740714797821,190.0,128.08,127.94,4.0929]
[1740714798019,0.05871793,127.99,127.96,0.05031175]
[1740714798217,7.8219,127.98,127.94,4.0929]
[1740714798419,7.8219,127.98,127.96,0.05383568]
[1740714799124,7.87614179,127.99,127.96,0.05383568]
[1740714799319,0.05534179,127.99,127.96,0.05383568]
[1740714800729,7.87654179,127.99,127.96,0.05383568]
[1740714800929,0.05534179,127.99,127.96,0.05383568]
[1740714801526,7.87604179,127.99,127.96,0.05383568]
[1740714802133,7.8215,127.98,127.96,0.05383568]
[1740714802830,0.05534179,127.99,127.96,0.05383568]
[1740714804227,7.8197,128.01,127.96,0.05383568]
[1740714804426,7.8197,128.01,127.94,4.0929]
[1740714805029,16.5412,128.09,127.94,4.0929]
[1740714805330,0.05083049,128.03,127.94,4.0929]
[1740714805526,7.8195,128.01,128.0,0.05050834]
[1740714805724,0.05692266,128.03,127.94,4.0929]
[1740714805930,16.5412,128.09,127.94,4.0929]
[1740714806130,0.05360403,128.0,127.97,0.05171345]
[1740714806329,1.38841346,128.08,127.94,2.0443]
[1740714806527,0.05920159,128.0,127.97,0.05477875]
[1740714806730,1.38813933,128.06,127.93,212.48]
[1740714806931,0.0551595,128.0,127.97,0.05964742]
[1740714807133,1.38805235,128.08,127.92,2.0318]
[1740714807331,0.0495096,128.0,127.92,2.0318]
[1740714807539,1.38805235,128.08,127.99,3.84e-06]
[1740714807835,1.38805235,128.08,127.86,32.33566521]
[1740714808039,1.56164597,128.07,127.87,1.9006]
[1740714808232,1.38786889,128.06,127.87,1.9006]
[1740714808432,7.8254,127.92,127.87,1.9006]
[1740714808633,14.48,128.0,127.87,1.9006]
[1740714808829,7.8267,127.9,127.88,0.05765481]
[1740714809030,7.8267,127.9,127.88,0.05539762]
[1740714809338,7.87911359,127.9,127.88,0.05539762]
[1740714809536,0.05241359,127.9,127.88,0.05539762]
[1740714813843,192.8737,127.99,127.88,0.05539762]
[1740714814145,7.8236,127.95,127.87,1.9006]
[1740714814342,14.48,128.03,127.87,1.9006]
[1740714814537,1.9133,128.02,127.87,1.9006]
[1740714815042,7.8238,127.94,127.93,0.05011333]
[1740714815242,7.8238,127.94,127.87,1.9006]
[1740714815442,7.8238,127.94,127.92,0.0588781]
[1740714815643,7.8238,127.94,127.87,1.9006]
[1740714815843,7.87530452,127.94,127.92,0.05202331]
[1740714816044,7.87530452,127.94,127.87,1.9006]
[1740714816447,7.87530452,127.94,127.89,0.05581494]
[1740714818250,0.05150452,127.94,127.89,0.05581494]
[1740714818850,7.87560452,127.94,127.89,0.05581494]
[1740714819158,0.05150452,127.94,127.89,0.05581494]
[1740714819538,7.8262,127.9,127.89,0.05581494]
[1740714820250,7.8805114,127.91,127.89,0.05581494]
[1740714820446,0.0548114,127.91,127.89,0.05581494]
[1740714820749,7.8262,127.9,127.89,0.05581494]
[1740714821043,190.0,127.89,127.68,195.0]
[1740714821244,16.4027,127.88,127.7,5.9803]
[1740714821451,16.4027,127.88,127.79,29.77216521]
[1740714821846,7.8323,127.8,127.79,29.77216521]
[1740714822150,7.8323,127.8,127.79,29.03246521]
[1740714822351,7.8323,127.8,127.79,16.46487567]
[1740714824254,7.833,127.79,127.78,0.05027787]
[1740714825544,31.313,127.79,127.78,0.05027787]
[1740714825745,7.833,127.79,127.78,0.05027787]
[1740714827247,31.313,127.79,127.78,0.05027787]
[1740714827550,31.313,127.79,127.78,7.787e-05]
[1740714829550,31.313,127.79,127.64,5.8416]
[1740714829551,7.8387,127.7,127.64,5.8416]
[1740714829753,14.48,127.74,127.56,14.48]
[1740714829944,14.48,127.74,127.63,7.8423]
[1740714830144,7.8404,127.67,127.59,3.8719]
[1740714830349,14.48,127.74,127.59,3.8719]
[1740714830548,14.48,127.74,127.61,7.8439]
[1740714830742,14.48,127.74,127.59,3.8719]
[1740714830948,0.05929094,127.68,127.65,0.05927471]
[1740714831353,14.48,127.74,127.59,11.717]
[1740714831553,14.48,127.74,127.58,7.8457]
[1740714831855,14.48,127.74,127.65,0.05203093]
[1740714831856,0.05758115,127.68,127.65,0.05203093]
[1740714832349,7.8409,127.66,127.65,2.1e-05]
[1740714832555,14.48,127.67,127.52,1.9561]
[1740714833157,7.8446,127.61,127.52,1.9561]
[1740714833357,14.48,127.67,127.52,1.9561]
[1740714833555,286.96,127.66,127.48,85.59147094]
[1740714833855,0.05432121,127.61,127.48,85.59147094]
[1740714834053,7.8509,127.5,127.48,85.59147094]
[1740714834358,131.5494397,127.6,127.48,85.59147094]
[1740714834653,14.5,127.59,127.48,85.59147094]
[1740714834854,190.0,127.58,127.48,85.59147094]
[1740714835050,7.8505,127.51,127.48,85.59147094]
[1740714835454,14.48,127.57,127.48,85.64491583]
[1740714835654,7.8509,127.5,127.48,85.64491583]
[1740714835855,0.05817203,127.51,127.48,85.59147094]
[1740714836153,7.90847203,127.51,127.48,0.0595141]
[1740714836358,14.48,127.57,127.48,0.0595141]
[1740714836655,7.8514,127.49,127.43,7.8545]